Cogmind - Beta 12 @@@ ROGUE MODE // 2024.01.13 @ 17:39:04 Player: Gaunah Result: Destroyed by as-36860 with Assembled Heavy Rifle Performance ------------- Evolutions (0) 0 Regions Visited (2) 400 Robots Destroyed (14) 70 Value Destroyed (356) 356 Prototype IDs (0) 0 Alien Tech Used (0) 0 Bonus (0) 0 TOTAL SCORE: 826 Bonus ------- None Cogmind --------- Core Integrity 0/250 Matter 411/450 Energy 123/250 System Corruption 0% Temperature Cool (0) Movement Rolling (95) Ox1 Location -10/Mines Parts ------- > --- POWER (1) -------- Ion Engine > --- PROPULSION (2) --- Light Treads Wheel > --- UTILITY (2) ------ Small Storage Unit Compact Matter Pod > --- WEAPON (2) ------- (None) > --- INVENTORY (8) ---- Light Nuclear Core Improved Heat Sink Huge Storage Unit Terrain Scanner Seismic Detector Tractor Beam Peak State ------------ > --- POWER ------------ Ion Engine > --- PROPULSION ------- Compact Wheel Compact Wheel > --- UTILITY ---------- Huge Storage Unit Compact Matter Pod > --- WEAPON ----------- Light Assault Rifle Enhanced Flamer > --- INVENTORY -------- Ion Engine Light Nuclear Core Light Treads Light Treads Small Storage Unit Terrain Scanner Seismic Detector Tractor Beam Light Cannon [Rating: 12] Favorites ----------- Power Ion Engine Engine Ion Engine Propulsion Compact Wheel Treads Light Treads Wheel Compact Wheel Utility Small Storage Unit Device Seismic Detector Storage Small Storage Unit Weapon Light Assault Rifle Energy Gun Medium Laser Ballistic Gun Light Assault Rifle Ballistic Cannon Light Cannon Special Weapon Enhanced Flamer Build | -11 -10 -10 ------- Run | Jun Mat Min Slots Evolved . | . . . Power . | . . . Propulsion . | . . . Utility . | . . . Weapon . | . . . Parts Attached 24 | 8 8 8 Power 3 | 1 1 1 Engine 3 | 1 1 1 Core . | . . . Reactor . | . . . Propulsion 9 | 2 4 3 Treads 4 | . 2 2 Leg . | . . . Wheel 5 | 2 2 1 Hover . | . . . Flight . | . . . Utility 6 | 2 2 2 Device 1 | 1 . . Storage 5 | 1 2 2 Processor . | . . . Hackware . | . . . Protection . | . . . Artifact . | . . . Weapon 6 | 3 1 2 Energy Gun 1 | 1 . . Energy Cannon . | . . . Ballistic Gun 2 | 2 . . Ballistic Cannon 2 | . 1 1 Launcher . | . . . Special Weapon 1 | . . 1 Impact Weapon . | . . . Slashing Weapon . | . . . Piercing Weapon . | . . . Special Melee Weapon . | . . . Unidentified Prototypes . | . . . Parts Lost 7 | . . 7 Power 1 | . . 1 Propulsion 3 | . . 3 Utility . | . . . Weapon 3 | . . 3 Highest Loss Streak 7 | . . 7 To Critical Strikes . | . . . Average Slot Usage (%) 98 | . 100 97 Engine 13 | . 14 13 Treads 8 | . 12 . Wheel 19 | . 15 26 Device 2 | . 4 . Storage 25 | . 23 28 Ballistic Gun 17 | . 20 13 Ballistic Cannon 8 | . 7 9 Special Weapon 1 | . . 3 Naked Turns . | . . . Heaviest Build 92 | 11 92 92 Greatest Support 40 | 26 40 32 Greatest Overweight (x) 2 | . 2 2 Average Overweight (x) . | . . 1 Largest Inventory Capacity 25 | 8 25 25 Average Capacity 15 | 7 11 24 Most Carried 10 | 4 9 10 Average Carried 6 | 3 6 8 Final Capacity 25 | 8 25 8 Final Carried 9 | 4 9 6 Class Distribution -------------------- 100% | Mutant Dominant Class ---------------- Mutant | -10/Materials Mutant | -10/Mines Resources | -11 -10 -10 ----------- Run | Jun Mat Min Matter Collected 730 | 291 374 65 Remotely . | . . . Salvage Created 508 | 53 394 61 Parts 26 | 5 19 2 Haulers Intercepted 2 | . 2 . Recyclers Shooed 1 | . 1 . Parts Field Recycled . | . . . Retrieved Matter . | . . . Parts Self-Destructed . | . . . Prevented . | . . . Kills | -11 -10 -10 ------- Run | Jun Mat Min Combat Hostiles Destroyed 11 | . 7 4 Guns 6 | . 6 . Cannons 5 | . 1 4 Classes Destroyed 5 | 1 3 1 Tunneler 2 | 2 . . Hauler 2 | . 2 . Recycler 1 | . 1 . Grunt 9 | . 7 2 Assembled 2 | . . 2 Best Kill Streak 4 | 2 4 2 Combat Bots Only 4 | . 4 2 Max Kills in Single Turn 1 | 1 1 1 Gunslinging . | . . . Exploded . | . . . Melee . | . . . Uniques/NPCs Destroyed . | . . . Combat | -11 -10 -10 -------- Run | Jun Mat Min Damage Taken 1138 | . 269 869 Core 262 | . 12 250 Absorbed by Shields . | . . . Core Remaining (%) 100 | 100 . . Volleys Fired 70 | 9 48 13 Largest 2 | 2 2 2 Hottest 100 | 70 55 100 Shots Fired 136 | 18 96 22 Gun 102 | 18 74 10 Cannon 25 | . 22 3 Launcher . | . . . Special 9 | . . 9 Kinetic 120 | 11 96 13 Thermal 16 | 7 . 9 Explosive . | . . . Electromagnetic . | . . . Robot Hit Streak 16 | 4 9 16 Robot Miss Streak 7 | 3 7 2 Penetration Max . | . . . Secondary Targets . | . . . Shots Hit Robots 89 | 10 60 19 Core Hits 38 | 4 25 9 Critical Kills . | . . . Critical Parts Destroyed . | . . . Critical Strikes 3 | 2 1 . Burn 2 | 2 . . Blast 1 | . 1 . Melee Attacks . | . . . Impact . | . . . Slashing . | . . . Piercing . | . . . Sneak Attacks . | . . . Combat Hostiles . | . . . Follow-up Attacks . | . . . Damage Inflicted 956 | 108 640 208 Guns 565 | 108 391 66 Cannons 288 | . 249 39 Explosions . | . . . Melee . | . . . Ramming . | . . . Kinetic 802 | 57 640 105 Thermal 154 | 51 . 103 Explosive . | . . . Electromagnetic . | . . . Impact . | . . . Slashing . | . . . Piercing . | . . . Highest Corruption . | . . . Average Corruption . | . . . Corruption Purged . | . . . Corruption Blocked . | . . . Overload Shots . | . . . Overflow Damage . | . . . Projectiles . | . . . Explosions . | . . . Melee . | . . . Knockbacks 1 | . 1 . Impact . | . . . Kinetic 1 | . 1 . Secondary . | . . . Self-Inflicted Damage . | . . . Shots . | . . . Rammed . | . . . Targets Rammed . | . . . Kicked . | . . . Crushed . | . . . Highest Temperature 214 | 90 46 214 Average Temperature 38 | 48 13 75 Received Heat Transfer 219 | . 165 54 Siege Activations . | . . . Robots Corrupted . | . . . Combat Hostiles . | . . . Parts Fried . | . . . Impact Corruptions . | . . . Robots Melted . | . . . Combat Hostiles . | . . . Parts Melted 1 | 1 . . Heat Transferred 1016 | 296 . 720 Parts Sabotaged . | . . . Parts Stolen . | . . . Parts Stripped . | . . . Power Chain Reactions . | . . . Missiles Intercepted . | . . . Alert | -11 -10 -10 ------- Run | Jun Mat Min Peak Influence 244 | 10 244 84 Initial 34 | . 6 34 Average 92 | 3 143 43 Maximum Alert Level 1 | . 1 . Low Security (%) 82 | 100 67 100 Level 1 17 | . 32 . Level 2 . | . . . Level 3 . | . . . Level 4 . | . . . Level 5 . | . . . High Security . | . . . Max Security . | . . . Squads Dispatched 1 | . 1 . Investigation . | . . . Extermination . | . . . Reinforcement 1 | . 1 . Assault . | . . . Garrison . | . . . Intercept . | . . . Searches Triggered . | . . . Construction Impeded . | . . . Haulers Reinforced . | . . . Active Scanning Responses . | . . . Cargo Convoy Interrupts . | . . . Stealth | -11 -10 -10 --------- Run | Jun Mat Min Distress Signals 1 | . 1 . Communications Jammed . | . . . Distress Signals . | . . . Times Spotted 21 | . 13 8 Peak Tracking Total 6 | . 4 6 Tactical Retreats 1 | . 1 . Traps | -11 -10 -10 ------- Run | Jun Mat Min Traps Triggered . | . . . Indirectly . | . . . Trap Hack Attempts . | . . . Triggered . | . . . Disarmed . | . . . Reprogrammed . | . . . Reused . | . . . Traps Extracted . | . . . Installed . | . . . Triggered . | . . . Machines | -11 -10 -10 ---------- Run | Jun Mat Min Machines Disabled . | . . . Max in Single Turn . | . . . Machines Repaired . | . . . Machines Sabotaged . | . . . Overloaded Fab Kills . | . . . Hacking | -11 -10 -10 --------- Run | Jun Mat Min Machines Accessed 2 | . 2 . Terminals 1 | . 1 . Fabricators . | . . . Repair Stations . | . . . Recycling Units 1 | . 1 . Scanalyzers . | . . . Garrison Access . | . . . Total Hacks 5 | . 5 . Successful 4 | . 4 . Failed 1 | . 1 . Catastrophic 1 | . 1 . Database Lockouts . | . . . Manual 4 | . 4 . Terminals 4 | . 4 . Fabricators . | . . . Repair Stations . | . . . Recycling Units 1 | . 1 . Scanalyzers . | . . . Garrison Access . | . . . Terminal Hacks 2 | . 2 . Branch Access Points 1 | . 1 . Locate Traps 1 | . 1 . Fabricator Hacks . | . . . Repair Station Hacks . | . . . Recycling Unit Hacks 1 | . 1 . Report Inventory 1 | . 1 . Scanalyzer . | . . . Garrison Access Hacks . | . . . Unauthorized Hacks 1 | . 1 . Terminals 1 | . 1 . Botnet 1 | . 1 . Fabricators . | . . . Repair Stations . | . . . Recycling Units . | . . . Scanalyzers . | . . . Garrison Access . | . . . Data Cores Recovered . | . . . Used . | . . . Hacking Detections . | . . . Full Trace Events . | . . . Feedback Events . | . . . Feedback Blocked . | . . . Robot Schematics Acquired . | . . . Robots Built . | . . . Authchips . | . . . Time . | . . . Total Robot Build Rating . | . . . Part Schematics Acquired . | . . . Parts Built . | . . . Authchips . | . . . Time . | . . . Total Part Build Rating . | . . . Parts Repaired . | . . . Time . | . . . Parts Recycled . | . . . Recycled Matter . | . . . Retrieved Matter . | . . . Retrieved Components . | . . . Parts Scanalyzed . | . . . Part Schematics Acquired . | . . . Parts Damaged . | . . . Bothacking | -11 -10 -10 ------------ Run | Jun Mat Min Used RIF Installer . | . . . Robots Hacked . | . . . Non-combat . | . . . Combat . | . . . Robot Hacks Applied . | . . . Relay Couplers Released . | . . . Fabnet Peak Effective % . | . . . Robots Rewired . | . . . Allies Hacked . | . . . Hacks Repelled . | . . . Allies | -11 -10 -10 -------- Run | Jun Mat Min Total Allies . | . . . Largest Group . | . . . Highest-Rated Group . | . . . Highest-Rated Ally . | . . . Total Orders . | . . . Ally Attacks . | . . . Total Damage . | . . . Kills . | . . . Allies Corrupted . | . . . Allies Melted . | . . . Intel | -11 -10 -10 ------- Run | Jun Mat Min Robot Analysis Total . | . . . Derelict Logs Recovered 2 | . . 2 Drone Launches . | . . . Drone Recoveries . | . . . Exploration | -11 -10 -10 ------------- Run | Jun Mat Min Turns Passed 920 | 116 499 305 Spaces Moved 538 | 85 269 184 Core 3 | 3 . . Treads 75 | . 74 1 Legs . | . . . Wheels 460 | 82 195 183 Hover . | . . . Flight . | . . . Fastest Speed 50 | 50 90 95 Average Speed 120 | 88 124 129 Slowest Speed 160 | 100 160 160 Overloaded Moves . | . . . Propulsion Burnouts . | . . . Robots Hopped . | . . . Cave-ins Triggered . | . . . Exploration Rate (%) 27 | 4 34 43 Regions Visited 2 Branch Regions 1 Pre-discovered Areas 1 | . . 1 Known Exits Taken 1 | . 1 . Unknown Exits Taken 1 | 1 . . Scrap Searched . | . . . Spaces Dug . | . . . Terrain Destroyed . | . . . Melee . | . . . Projectile . | . . . AOE . | . . . Terrain Rammed . | . . . Walls Destroyed . | . . . Machines Disabled . | . . . Actions | -11 -10 -10 --------- Run | Jun Mat Min Total 680 | 105 352 223 Wait 26 | . 13 13 Move 536 | 84 268 184 Hop . | . . . Pick Up 16 | 4 9 3 Fast Attach 8 | 7 . 1 Attach 4 | . . 4 Detach . | . . . Swap 12 | 1 8 3 Drop 8 | . 6 2 Fire 70 | 9 48 13 Melee . | . . . Ram . | . . . Kick . | . . . Crush . | . . . Escape Stasis . | . . . Rewire . | . . . Trap . | . . . Miscellaneous . | . . . Route ------- -11/Junkyard -10/Materials (discovered 2 exits: *Min x2) -10/Mines (discovered 2 exits: *Mat x2) History --------- Turn | Location | Event 11 | -11/Junkyard | Discovered new exit (range 15) 117 | -11/Junkyard | Entered Materials 143 | -10/Materials | Identified exit to Mines 309 | -10/Materials | Build established: Mutant 616 | -10/Materials | Entered Mines 689 | -10/Mines | Identified exit to Materials 691 | -10/Mines | Learned location of Mines (-8) 691 | -10/Mines | Discovered exit to Materials (range 6) 727 | -10/Mines | A weapon hastily lodged in a ceiling crevice suddenly fell to the ground 866 | -10/Mines | Assembled infested the area 896 | -10/Mines | Core integrity fell below 50% 906 | -10/Mines | Core integrity fell below 20% 921 | -10/Mines | Destroyed by as-36860 with Assembled Heavy Rifle Last Messages --------------- 00836_ G-47 Trooper destroyed. 00837_ G-34 Mercenary overheating. 00839_ G-34 Mercenary destroyed. 00840_ Acquired 14 matter. 00842_ Acquired 6 matter. 00845_ Acquired Imp. Heat Sink. 00866_ ALERT: Infestation in the mines, dispatching Demolisher response squad. 00895_ Acquired 1 matter. 00896_ as-48575 destroyed. 00896_ Ion Engine destroyed. 00897_ Enh. Flamer destroyed. 00898_ Com. Wheel destroyed. 00901_ Acquired 10 matter. 00902_ Acquired 6 matter. 00905_ as-49992 destroyed. 00905_ Lgt. Assault Rifle destroyed. 00908_ Lgt. Treads destroyed. 00913_ Acquired Wheel. 00921_ Lgt. Cannon destroyed. Map ----- +----------------------------------------------------+ | | | | | | | | | | | | | | | ????????????????????????????????? | | ????????????????????????????????? | | ????????????????????????????????? | | ????????????????????????????????? | | ???????????????????????????? #??? | | ??????????????????????????? #??? | | ??????????????????????????? ##?? | | ??????????????????????????? ##? | | ??????????????????????????? #? | | ??????????????????????????? ?? | | ??????????????????????????# #?? | | ?????????????#####??????## #??? | | ?????????????# ####""## #??? | | ????? ???????# ## X #??? | | ?????? ###### # #??? | | ?????? a #??? | | ?????? a a #???? | | ????????????# a ! ##??? | | ?????????????# % @ #??? | | ?????????????# % % ## #??? | | ?????????????# ###### ##??? | | ????????????## #####???###???? | | ???????###### ### ##????????? | | ????# ## #????????? | | ??????#### ### ## #????????? | | ?????????#???## ## #????????? | | ?????????# #### ## #????????? | | ?????????# #????????? | | ?????????########## ##???????? | | ??????????????????## ##??????? | | ???????????????????## #??????? | | ????????????????????# #??????? | | ????????????????????# #??????? | | ????????????????????## ##??????? | | ?????????????????????# ##???????? | | ?????????????????????# #????????? | | #####????????????????# #????????? | | # ###??????????????# #????????? | | ###???????###??# #????????? | | ###?????# ##?# #????????? | | ##????# ### #????????? | | # ## #???## ##!#????????? | | # #### #??## % #????????? | +----------------------------------------------------+ Best States ------------- Heat Dissipation 25 Energy Generation 10 Energy Capacity 250 Matter Stores 450 Matter Capacity 450 Sight Range 16 Terrain Scan Density 10 Evasion (%) 42 Recoil Reduction 2 Item Schematics ----------------- None Robot Schematics ------------------ None Fabricated ------------ Nothing Alien Tech Used ----------------- None Achievements -------------- None Challenges ------------ None Game ------ Seed FrostScanProtomatter Manual? 0 Play Time 00:20:40 Cumulative 41.4 hours Start 2024.01.13 @ 14:53:49 End 2024.01.13 @ 17:39:04 Sessions 2 Manual Loads 0 Difficulty Rogue Special Mode None Game No. 39 Rogue 39 Adventurer 0 Explorer 0 Win Type - Total 0 Types 0/0/0/0/0/0/0/0/0 Lore% 22 Gallery% 30 Achievement% 26 Wizard Run 0 Options --------- ASCII 0 Keyboard 0 Movement Mouse Keybinds 0 Fullscreen 2 Font 18/TerminusBold Map View 76x50 Tactical HUD 1 Map Filters NONE Filters NONE Steam 1 RUN: 5834a0a1-17e3-4c38-93f3-b59276241f49